fUST/lending_fUST_20240103
["ID","MTS","AMOUNT","RATE_DAILY","PERIOD"]
[309989941,1704276632160,-250.0,0.00036222,2]
[309989943,1704276632169,-24900.0,0.0003657,2]
[309989945,1704276632178,-177.7590882,0.00036726,2]
[309989947,1704276632188,-725.640985,0.00036737,2]
[309989949,1704276632199,-7500.0,0.00037,30]
[309989951,1704276632208,-1352.814893,0.00037341,2]
[309989953,1704276632218,-2464.42961244,0.000375,30]
[309989955,1704276632229,-250.0,0.00037953,15]
[309989957,1704276632238,-6223.8,0.0003799,3]
[309989958,1704276632249,-261.13517346,0.00038,4]
[309989959,1704276632258,-5425.67637215,0.00038,30]
[309989960,1704276632268,-806.42129781,0.00038,10]
[309989961,1704276632280,-1234.81076917,0.00038,10]
[309989962,1704276632296,-12244.90102066,0.00038,10]
[309989998,1704276638081,-154.81422293,0.00034498,4]
[309990000,1704276638091,-362.99108036,0.00034931,2]
[309990004,1704276638242,-521.0003647,0.00034931,2]
[309990005,1704276638254,-24016.00855494,0.00034931,2]
[309990006,1704276638265,-9246.30717927,0.00038,10]
[309990007,1704276638274,-731.79987618,0.00038,120]
[309990008,1704276638284,-1352.814893,0.00038627,2]
[309990009,1704276638292,-726.81389272,0.00038677,2]
[309990010,1704276638302,-168.89764484,0.00038677,2]
[309990011,1704276638311,-200.0,0.0003874,2]
[309990012,1704276638320,-42038.39617348,0.000388,45]
[309990013,1704276638331,-527.12954456,0.000388,45]
[309990024,1704276641153,-1193.73746744,0.000388,45]
[309990025,1704276641164,-650.67904065,0.000388,45]
[309990026,1704276641176,-1081.36943122,0.000388,45]
[309990027,1704276641188,-1612.03315649,0.000388,45]
[309990028,1704276641199,-1196.07710027,0.000388,45]
[309990029,1704276641209,-154.81422293,0.00039,4]
[309990031,1704276641218,-1352.814893,0.00039914,2]
[309990033,1704276641227,-1676.69114146,0.0004,120]
[309990035,1704276641239,-16547.76709135,0.0004,120]
[309990036,1704276641249,-154.84515485,0.0004,4]
[309990037,1704276641258,-529.13163476,0.0004,10]
[309990038,1704276641268,-201.75791673,0.0004,2]
[309990039,1704276641279,-201.75791673,0.000408,2]
[309990040,1704276641288,-453.89800057,0.00041422,4]
[309990041,1704276641298,-5262.05814536,0.00041422,4]
[309990042,1704276641306,-201.75791673,0.000416,2]
[309990043,1704276641315,-250.0,0.00041749,30]
[309990044,1704276641325,-4939.67575872,0.00041949,4]
[309990045,1704276641334,-4016.92,0.00041949,20]
[309990046,1704276641343,-242.10950007,0.000424,5]
[309990047,1704276641352,-421.50734577,0.000429,2]
[309990048,1704276641363,-201.39531971,0.000432,5]
[309990049,1704276641374,-151.64663113,0.00043551,14]
[309990050,1704276641383,-151.64663113,0.00043551,14]
[309990051,1704276641392,-151.64663113,0.00043551,14]
[309990052,1704276641401,-151.64663113,0.00043551,14]
[309990053,1704276641411,-151.64663113,0.00043551,14]
[309990054,1704276641420,-151.64663113,0.00043551,14]
[309990055,1704276641429,-151.64663113,0.00043551,14]
[309990056,1704276641438,-151.64663113,0.00043551,14]
[309990057,1704276641447,-151.64663113,0.00043551,14]
[309990058,1704276641457,-151.64663113,0.00043551,14]
[309990059,1704276641466,-151.64663113,0.00043551,14]
[309990060,1704276641475,-151.64663113,0.00043551,14]
[309990061,1704276641484,-151.64663113,0.00043551,14]
[309990062,1704276641493,-151.64663113,0.00043551,14]
[309990063,1704276641503,-151.64663113,0.00043551,14]
[309990064,1704276641512,-151.64663113,0.00043551,14]
[309990065,1704276641521,-151.64663113,0.00043551,14]
[309990066,1704276641530,-151.64663113,0.00043551,14]
[309990067,1704276641539,-151.64663113,0.00043551,14]
[309990068,1704276641549,-151.64663113,0.00043551,14]
[309990069,1704276641558,-151.64663113,0.00043551,14]
[309990070,1704276641567,-151.64663113,0.00043551,14]
[309990071,1704276641575,-151.64663113,0.00043551,14]
[309990072,1704276641584,-151.64663113,0.00043551,14]
[309990073,1704276641593,-151.64663113,0.00043551,14]
[309990074,1704276641602,-151.64663113,0.00043551,14]
[309990075,1704276641610,-151.64663138,0.00043551,14]
[309990076,1704276641621,-666.4896426,0.00043723,5]
[309990077,1704276641630,-550.0,0.00043835,7]
[309990078,1704276641639,-268.62566099,0.0004391,2]
[309990079,1704276641647,-2043.634234,0.00044,30]
[309990080,1704276641657,-238.0,0.00044016,2]
[309990081,1704276641665,-550.0,0.00044109,7]
[309990082,1704276641674,-4422.94371332,0.00044324,30]
[309990083,1704276641683,-567.55673083,0.00044383,7]
[309990084,1704276641692,-2659.18191535,0.000449,6]
[309990085,1704276641701,-51490.1533,0.00044999,4]
[309990086,1704276641711,-19664.3361326,0.00045,5]
[309990087,1704276641722,-501.0,0.00045,2]
[309990088,1704276641731,-1507.859588,0.00045,3]
[309990089,1704276641740,-10601.35241598,0.00045564,4]
[309990090,1704276641750,-2000.0,0.00045753,21]
[309990091,1704276641760,-2000.0,0.00045753,21]
[309990092,1704276641769,-2000.0,0.00045753,21]
[309990093,1704276641778,-160.0,0.0004577,3]
[309990094,1704276641788,-16386.46351229,0.000458,2]
[309990095,1704276641798,-3268.73804102,0.0004589,2]
[309990117,1704276643671,-1020.36066585,0.0004589,2]
[309990118,1704276643680,-2651.46371584,0.000459,10]
[309990120,1704276643690,-3914.46332019,0.000459,30]
[309990121,1704276643699,-189.92291866,0.00045977,2]
[309990122,1704276643708,-1207.09296687,0.00045992,21]
[309990130,1704276646343,-154.81422293,0.0004142,8]
[309990131,1704276646352,-792.90703313,0.00045992,21]
[309990132,1704276646362,-466.0,0.00045993,60]
[309990133,1704276646371,-466.0,0.00045996,60]
[309990134,1704276646381,-1000.0,0.00046,46]
[309990135,1704276646390,-1500.0,0.00046,3]
[309990136,1704276646400,-200.105524,0.00046,17]
[309990137,1704276646409,-466.0,0.00046003,60]
[309990138,1704276646419,-466.0,0.00046006,60]
[309990139,1704276646429,-466.0,0.00046007,60]
[309990140,1704276646440,-5850.87,0.00046012,3]
[309990141,1704276646449,-466.0,0.00046013,60]
[309990142,1704276646459,-466.0,0.00046016,60]
[309990143,1704276646468,-127.11642855,0.00046017,60]
[309990148,1704277205289,-1133.89569552,0.00031096,2]
[309990149,1704277205505,-23.14072848,0.00031096,2]
[309990150,1704277237540,-593.93540289,0.00031094,4]
[309990151,1704277237640,-12.12113067,0.00031094,4]
[309990152,1704277244942,-396.10746151,0.00031094,4]
[309990153,1704277245066,-8.08382575,0.00031094,4]
[309990154,1704277249162,-424.4821418,0.00031094,4]
[309990155,1704277249346,-8.66290085,0.00031094,4]
[309990156,1704277256289,-361.06604975,0.00031094,4]
[309990157,1704277256448,-7.36869489,0.00031094,4]
[309990158,1704277346537,-790.52878744,0.00030985,2]
[309990159,1704277346699,-16.13324056,0.00030985,2]
[309990160,1704277394005,-154.81422293,0.00030478,5]
[309990161,1704277394035,-992.24794913,0.00030478,4]
[309990162,1704277394290,-178.22365501,0.00030478,4]
[309990163,1704277433689,-1817.83080304,0.00030478,2]
[309990164,1704277433718,-122.01134435,0.00030478,4]
[309990165,1704277433795,-34.68576491,0.00030478,4]
[309990166,1704277433837,-161.5999596,0.00030479,2]
[309990167,1704277435263,154.84515485,0.00030478,4]
[309990168,1704277546094,-173.518618,0.00030678,2]
[309990169,1704277546114,-1669.69344925,0.00031861,3]
[309990170,1704277630451,-5000.0,0.00030852,2]
[309990171,1704277630654,-5000.0,0.00030852,2]
[309990172,1704277630763,-5000.0,0.00030852,2]
[309990173,1704277630970,-5000.0,0.00030852,2]
[309990174,1704277631085,-4900.0,0.00030852,2]
[309990175,1704277636082,-4017.38711777,0.00030851,4]
[309990176,1704277636103,-1369.717492,0.00031844,4]
[309990177,1704277636123,-2537.28557741,0.00031844,4]
[309990178,1704277650081,-154.76784823,0.00031835,3]
[309990179,1704277661701,-686.3841551,0.00030845,2]
[309990180,1704277661887,-14.0078399,0.00030845,2]
[309990181,1704277662951,151.31843755,0.00030783,2]
[309990183,1704277747114,-10657.47396206,0.00031741,2]
[309990184,1704277747136,-1774.60609081,0.00031741,4]
[309990185,1704277747159,-626.27117964,0.00031742,4]
[309990186,1704277747180,-2729.6028891,0.00031742,4]
[309990187,1704277747200,-154.81422293,0.00031743,5]
[309990188,1704277747220,-1269.02823523,0.00031743,4]
[309990189,1704277747241,-169.69161421,0.00031744,5]
[309990190,1704277747262,-6929.09,0.00031824,3]
[309990191,1704277747282,-5774.24,0.00031824,3]
[309990192,1704277747302,-157.0,0.0003183,2]
[309990193,1704277747323,-3370.17064279,0.0003183,4]
[309990194,1704277747343,-2808.26480597,0.0003183,4]
[309990195,1704277747363,-1573.58742411,0.00031831,4]
[309990196,1704277747384,-67181.23439366,0.00031834,4]
[309990197,1704277753101,-5398.6678274,0.00031834,4]
[309990198,1704277763112,-32555.76296218,0.00031834,4]
[309990199,1704277763134,-4027.22436996,0.00031951,4]
[309990200,1704277763158,-646.01609861,0.00031952,3]
[309990201,1704277772420,-5673.57964602,0.00031952,3]
[309990202,1704277772443,-1363.64035398,0.00031953,4]
[309990224,1704277832153,-5953.78640828,0.00031953,4]
[309990225,1704277832162,-924.1533848,0.00032103,2]
[309990226,1704277832171,-175.093622,0.00033106,2]
[309990227,1704277832181,-1000.0,0.00034,7]
[309990228,1704277832191,-45727.64768334,0.00034389,4]
[309990229,1704277832200,-463.23008802,0.00034504,4]
[309990230,1704277832209,-189.53647596,0.00034508,4]
[309990231,1704277832218,-161.84130107,0.00034508,4]
[309990232,1704277832228,-348.553476,0.00034521,2]
[309990233,1704277832237,-331.97293247,0.00035451,4]
[309990234,1704277832247,-150.0,0.00035452,2]
[309990235,1704277832256,-348.553476,0.00035798,2]
[309990236,1704277832266,-229.99225833,0.00036,4]
[309990237,1704277832275,-348.553476,0.00037075,2]
[309990238,1704277832286,-731.79987618,0.00038,120]
[309990239,1704277832295,-348.553476,0.00038352,2]
[309990240,1704277832305,-162.68140138,0.00038453,2]
[309990241,1704277832314,-500.0,0.0003848,2]
[309990242,1704277832324,-626.99807629,0.00038684,2]
[309990243,1704277832334,-200.0,0.0003874,2]
[309990244,1704277832343,-527.12954456,0.000388,45]
[309990245,1704277832353,-154.81422293,0.00039629,5]
[309990246,1704277832362,-348.553476,0.0003963,2]
[309990247,1704277832371,-1162.19387719,0.0004142,2]
[309990248,1704277832381,-252.91824735,0.0004142,4]
[309990249,1704277832390,-3209.44549254,0.00043699,4]
[309990250,1704277832400,-522.02683406,0.000437,2]
[309990251,1704277832410,-4602.54213709,0.00044999,4]
[309990252,1704277832419,-492.68133125,0.00045,2]
[309990253,1704277832428,-406.0,0.00045,90]
[309990254,1704277832437,-4060.27405355,0.00045102,4]
[309990255,1704277832447,-26366.26316002,0.00045562,4]
[309990256,1704277832457,-406.0,0.00045685,90]
[309990257,1704277832466,-2000.0,0.00045753,21]
[309990258,1704277832475,-2089.25,0.00045753,21]
[309990259,1704277832484,-736.32941334,0.00045763,7]
[309990260,1704277832494,-1000.0,0.00045859,7]
[309990261,1704277832503,-2020.25100517,0.000459,5]
[309990262,1704277832514,-406.0,0.00045959,90]
[309990263,1704277832524,-150.0,0.00045994,60]
[309990264,1704277832532,-150.0,0.00045996,60]
[309990265,1704277832541,-578.77452201,0.00045998,2]
[309990266,1704277832550,-481.95184413,0.00045998,2]
[309990267,1704277832559,-14153.31708742,0.00045999,30]
[309990268,1704277832612,-15792.37996485,0.00045999,30]
[309990269,1704277832622,-205.1717214,0.00046,60]
[309990270,1704277832631,-150.0,0.00046004,60]
[309990271,1704277832641,-150.0,0.00046006,60]
[309990272,1704277832650,-227.55,0.00046007,60]
[309990273,1704277832659,-150.0,0.00046014,60]
[309990274,1704277832668,-150.0,0.00046016,60]
[309990275,1704277832677,-150.0,0.00046017,60]
[309990276,1704277832686,-1399.57177637,0.0004602,120]
[309990299,1704277838320,-521.0003647,0.00043699,4]
[309990300,1704277838332,-1277.38526286,0.00043699,4]
[309990301,1704277838342,-4811.87,0.00045092,3]
[309990302,1704277838351,-16795.12753175,0.0004602,120]
[309990303,1704277838361,-237.43808115,0.00046022,2]
[309990304,1704277838370,-3629.963103,0.00046022,2]
[309990305,1704277838379,-1043.57469211,0.00046022,30]
[309990306,1704277838389,-1093.39872623,0.00046022,90]
[309990307,1704277838398,-851.81467386,0.00046022,4]
[309990308,1704277838408,-526.75231916,0.00046022,4]
[309990309,1704277838418,-4822.98760864,0.00046022,4]
[309990310,1704277838427,-679.34864269,0.00046022,4]
[309990311,1704277838437,-317.33502888,0.00046022,4]
[309990312,1704277838446,-197.28984375,0.00046022,4]
[309990313,1704277838456,-155.41221058,0.00046022,4]
[309990314,1704277838466,-155.74783383,0.00046022,4]
[309990315,1704277838475,-1050.54870749,0.00046022,5]
[309990316,1704277838485,-155.71415528,0.00046022,4]
[309990317,1704277838494,-2774.92187138,0.00046022,4]
[309990318,1704277838504,-4207.01024363,0.00046022,7]
[309990319,1704277838514,-158.71969695,0.00046022,7]
[309990320,1704277838524,-432.55498736,0.00046022,4]
[309990321,1704277838533,-155.12945128,0.00046022,4]
[309990322,1704277838542,-554.69082503,0.00046022,4]
[309990323,1704277838551,-175.14430798,0.00046022,4]
[309990324,1704277838561,-618.77863236,0.00046022,4]
[309990325,1704277838570,-306.61670578,0.00046022,4]
[309990326,1704277838579,-221.11556098,0.00046022,4]
[309990327,1704277838589,-547.38672819,0.00046022,4]
[309990328,1704277838598,-223.78208717,0.00046022,4]
[309990329,1704277838608,-3000.94648491,0.00046022,4]
[309990330,1704277838618,-231.26398304,0.00046022,4]
[309990331,1704277838627,-905.43052624,0.00046022,2]
[309990332,1704277838636,-1181.42643586,0.00046022,4]
[309990333,1704277838646,-1985.20011254,0.00046022,4]
[309990334,1704277838655,-1643.88681295,0.00046022,4]
[309990335,1704277838664,-468.8416976,0.00046022,4]
[309990336,1704277838674,-293.32682791,0.00046022,4]
[309990337,1704277838683,-3257.63460832,0.00046022,4]
[309990338,1704277838692,-2253.36475037,0.00046022,4]
[309990339,1704277838702,-154.84515485,0.00046023,4]
[309990340,1704277838711,-154.84515485,0.00046023,4]
[309990341,1704277838720,-470.86768404,0.00046023,4]
[309990342,1704277838729,-872.74894387,0.00046023,4]
[309990343,1704277838739,-1477.54180569,0.00046023,4]
[309990344,1704277838749,-155.72521236,0.00046023,4]
[309990345,1704277838758,-338.82464507,0.00046023,4]
[309990346,1704277838770,-154.87609912,0.00046023,2]
[309990347,1704277838780,-201.92322463,0.00046023,4]
[309990348,1704277838789,-6125.56,0.00046023,74]
[309990349,1704277838798,-4872.19956164,0.00046023,4]
[309990350,1704277838807,-240.4213483,0.00046023,4]
[309990351,1704277838905,-252.53626205,0.00046023,4]
[309990352,1704277838917,-245.38671896,0.00046023,4]
[309990353,1704277838927,-245.22807456,0.00046023,4]
[309990354,1704277838936,-154.87609912,0.00046023,4]
[309990355,1704277838945,-154.87609912,0.00046023,4]
[309990356,1704277838955,-1733.29488981,0.00046023,4]
[309990357,1704277838964,-155.51661024,0.00046023,4]
[309990358,1704277838974,-305.18116205,0.00046023,4]
[309990359,1704277838983,-207.37133712,0.00046023,2]
[309990360,1704277838992,-155.24448629,0.00046023,2]
[309990361,1704277839002,-1788.74221086,0.00046023,4]
[309990362,1704277839013,-304.57684248,0.00046023,7]
[309990363,1704277839022,-25609.53932513,0.00046024,2]
[309990364,1704277839032,-3562.83343699,0.00046024,4]
[309990365,1704277839041,-19622.64196242,0.00046024,4]
[309990366,1704277839051,-2081.8359398,0.00046024,2]
[309990367,1704277839060,-1894.66991584,0.00046024,4]
[309990368,1704277839070,-245.18577707,0.00046024,4]
[309990369,1704277839079,-7906.81848714,0.00046024,4]
[309990370,1704277839092,-527.12954456,0.00046024,4]
[309990371,1704277839108,-2692.47169873,0.00046024,4]
[309990376,1704277841401,-304.0,0.00045,90]
[309990377,1704277841411,-304.0,0.00045685,90]
[309990378,1704277841421,-405.1421654,0.00046023,2]
[309990379,1704277841430,-14037.54071975,0.00046024,4]
[309990380,1704277841440,-1037.00033996,0.00046024,4]
[309990381,1704277841450,-380.35968537,0.00046024,4]
[309990382,1704277841459,-41083.94909167,0.00046024,2]
[309990389,1704277843250,-4097.66059819,0.00046024,2]
[309990400,1704277846220,-4009.89,0.00046015,3]
[309990402,1704277846230,-986.45214352,0.00046023,4]
[309990403,1704277846240,-201.17785648,0.00046024,2]
[309990440,1704278847101,-154.81422293,0.00033806,5]
[309990441,1704278847122,-154.81422293,0.00033807,2]
[309990442,1704278847142,-5246.86679064,0.00033807,4]
[309990443,1704278847162,-2129.74279197,0.00033807,4]
[309990444,1704278847182,-1573.58742411,0.00033808,4]
[309990445,1704278847202,-626.27117964,0.00033809,4]
[309990446,1704278847221,-154.81422293,0.00033809,4]
[309990447,1704278847241,-698.95,0.0003381,4]
[309990448,1704278847260,-210.35056589,0.0003381,4]
[309990449,1704278847283,-540.42104654,0.0003381,4]
[309990511,1704279032368,-170.5935,0.00033462,2]
[309990513,1704279032378,-705.16202791,0.00033815,4]
[309990514,1704279032388,-154.81422293,0.00033815,4]
[309990516,1704279032397,-200.0,0.00033816,2]
[309990518,1704279032407,-7190.07121738,0.00033871,4]
[309990520,1704279032416,-6454.08669701,0.00033872,4]
[309990522,1704279032426,-2348.4939649,0.00033873,2]
[309990524,1704279032435,-1331.5220966,0.0003391,2]
[309990526,1704279032445,-900.679306,0.00033949,2]
[309990528,1704279032454,-353.3116885,0.00033969,2]
[309990530,1704279032463,-200.0,0.00033986,2]
[309990532,1704279032472,-1000.0,0.00034,7]
[309990534,1704279032481,-172.95203609,0.00034416,7]
[309990536,1704279032491,-268.17616489,0.00034517,4]
[309990538,1704279032500,-1785.066174,0.00034521,2]
[309990540,1704279032509,-150.0,0.00035452,2]
[309990542,1704279032518,-174.991816,0.00035657,2]
[309990544,1704279032527,-166.666666,0.00035665,2]
[309990545,1704279032537,-1785.066174,0.00035798,2]
[309990547,1704279032546,-1101.73475935,0.00035999,4]
[309990549,1704279032556,-229.99225833,0.0003619,4]
[309990551,1704279032565,-24900.0,0.00036191,2]
[309990553,1704279032574,-166.666666,0.00036637,2]
[309990555,1704279032583,-1785.066174,0.00037075,2]
[309990557,1704279032592,-250.0,0.00037258,15]
[309990559,1704279032602,-154.81422293,0.00037609,5]
[309990561,1704279032611,-166.666666,0.0003761,2]
[309990563,1704279032620,-807.27659054,0.00038,120]
[309990565,1704279032629,-1785.066174,0.00038352,2]
[309990567,1704279032638,-166.666666,0.00038582,2]
[309990569,1704279032648,-235.45206444,0.0003864,2]
[309990571,1704279032657,-3322.04264509,0.00038689,4]
[309990573,1704279032666,-1845.85764457,0.0003869,2]
[309990575,1704279032675,-200.0,0.0003874,2]
[309990577,1704279032685,-2798.95493488,0.000388,45]
[309990625,1704279033154,-17744.33708147,0.000388,45]
[309990628,1704279033166,-1353.49324229,0.000388,45]
[309990697,1704279038572,-1276.87891946,0.000388,45]
[309990698,1704279038584,-18864.73199538,0.000388,45]
[309990699,1704279038593,-166.666666,0.00039554,2]
[309990700,1704279038602,-1785.066174,0.0003963,2]
[309990701,1704279038611,-596.582911,0.00040211,120]
[309990702,1704279038621,-166.666666,0.00040527,2]
[309990703,1704279038630,-2431.74355265,0.00040707,4]
[309990704,1704279038639,-310.0,0.00040984,30]
[309990705,1704279038648,-9314.45,0.00041391,3]
[309990707,1704279038657,-11177.34,0.00041401,3]
[309990708,1704279038667,-34618.14461783,0.00041411,4]
[309990709,1704279038677,-1700.55561621,0.00041417,4]
[309990710,1704279038686,-1360.52948905,0.0004142,2]
[309990711,1704279038695,-1798.38562756,0.00041916,4]
[309990712,1704279038705,-715.73849101,0.00041916,4]
[309990713,1704279038715,-417.0,0.00042192,4]
[309990714,1704279038724,-174.526135,0.00042792,2]
[309990715,1704279038734,-174.526135,0.00042792,120]
[309990716,1704279038743,-177.060285,0.00043482,2]
[309990717,1704279038753,-491.74971169,0.00043718,4]
[309990718,1704279038762,-2313.87531538,0.00043719,4]
[309990719,1704279038772,-518.15346312,0.00043719,2]
[309990720,1704279038782,-2991.51851969,0.00043722,2]
[309990721,1704279038791,-3284.94264231,0.00043723,2]
[309990722,1704279038800,-495.31512757,0.00043723,5]
[309990723,1704279038810,-552.86749984,0.00043924,2]
[309990724,1704279038819,-275.36172513,0.00044,4]
[309990725,1704279038829,-317.0,0.00045,90]
[309990726,1704279038838,-317.0,0.00045685,90]
[309990727,1704279038847,-231.4352,0.00045794,2]
[309990728,1704279038856,-160.0,0.00045918,3]
[309990729,1704279038866,-67615.71818103,0.00045926,2]
[309990730,1704279038876,-184.09832043,0.00045932,10]
[309990731,1704279038885,-317.0,0.00045959,90]
[309990732,1704279038895,-155.99791045,0.00045978,2]
[309990733,1704279038904,-338.82464507,0.00045998,4]
[309990734,1704279038914,-269.45537212,0.00045998,4]
[309990735,1704279038924,-1894.66991584,0.00045998,4]
[309990736,1704279038933,-155.59984457,0.00045998,4]
[309990737,1704279038942,-155.66649738,0.00045998,2]
[309990738,1704279038952,-221.11556098,0.00045999,4]
[309990739,1704279038961,-1305.795763,0.00045999,4]
[309990740,1704279038970,-173.6323566,0.00045999,2]
[309990741,1704279038979,-503.36037761,0.00045999,2]
[309990742,1704279038989,-150.0,0.00046,39]
[309990743,1704279038998,-63653.88737267,0.00046,30]
[309990744,1704279039093,-527.12954456,0.00046,30]
[309990762,1704279041608,-559.0,0.00045,90]
[309990763,1704279041619,-559.0,0.00045685,90]
[309990764,1704279041629,-59560.83697221,0.00046,30]
[309990765,1704279041665,-4555.3057261,0.00046,30]
[309990768,1704279041677,-464.78866184,0.00046,30]
[309990769,1704279041689,-367.733038,0.00046,30]
[309990793,1704279046414,-2444.03835697,0.0003381,2]
[309990795,1704279046424,-182.78303,0.00043191,30]
[309990798,1704279046434,-82.17861303,0.00045078,4]
[309990800,1704279046446,-789.34461052,0.00045078,4]
[309990802,1704279046456,-209.37266859,0.00045998,4]
[309990804,1704279046465,-163.01822814,0.00045998,4]
[309990806,1704279046475,-155.35404961,0.00045998,4]
[309990809,1704279046484,-165.82236511,0.00045998,4]
[309990812,1704279046494,-154.84515485,0.00045998,2]
[309990815,1704279046503,-805.89946047,0.00045998,4]
[309990818,1704279046512,-155.06143964,0.00045998,2]
[309990821,1704279046522,-262.84829523,0.00045998,4]
[309990824,1704279046530,-443.75950944,0.00045999,4]
[309990826,1704279046540,-189.90135076,0.00045999,2]
[309990829,1704279046549,-672.24608914,0.00045999,2]
[309990832,1704279046558,-154.84515485,0.00045999,2]
[309990835,1704279046569,-40416.59018209,0.00046,30]
[309990838,1704279046579,-14362.32,0.00046012,3]
[309990841,1704279046589,-3403.43846643,0.00046022,4]
[309990845,1704279046602,-36.99934498,0.00046022,4]
[309990848,1704279046613,-220.3053373,0.00046022,4]
[309990861,1704279234115,10983.26797584,0.0001631,2]
[309990862,1704279248469,7169.04208379,0.0002399,2]
[309990863,1704279250335,202.46633126,0.000125,2]
[309990864,1704279260572,1000.0,0.00012,7]
[309990865,1704279267548,-560.4802548,0.0003,3]
[309990866,1704279267765,-11.43837255,0.0003,3]
[309990867,1704279268493,227.40127027,0.00022,2]
[309990868,1704279271753,-442.05763558,0.00029999,2]
[309990869,1704279271919,-9.0215844,0.00029999,2]
[309990870,1704279271949,-245.55870281,0.00029999,2]
[309990872,1704279303733,-1209.36727395,0.0003123,4]
[309990873,1704279303754,-239.48878468,0.00031231,4]
[309990874,1704279303773,-154.81422293,0.00031231,4]
[309990875,1704279303794,-1774.60609081,0.00031231,4]
[309990876,1704279303814,-340.15584359,0.00031231,4]
[309990877,1704279303834,-186.51888227,0.00031231,4]
[309990878,1704279303854,-205.96249063,0.00031233,4]
[309990879,1704279303873,-3768.09739589,0.00031234,4]
[309990880,1704279303892,-1050.54870749,0.00031234,2]
[309990881,1704279303912,-404.19128726,0.00031234,4]
[309990882,1704279303932,-2117.74659289,0.00031237,4]
[309990883,1704279303954,-154.81422293,0.00031237,4]
[309990884,1704279304069,-154.81422293,0.00031238,4]
[309990885,1704279304090,-27989.05174612,0.00031238,2]
[309990886,1704279304111,-15485.35,0.00031238,3]
[309990887,1704279304130,-154.81422293,0.0003124,4]
[309990888,1704279304150,-309.19239456,0.00031241,4]
[309990889,1704279304170,-342.48956173,0.00031241,2]
[309990890,1704279304195,-355.70711359,0.00031241,4]
[309990891,1704279304214,-154.81422293,0.00031241,4]
[309990892,1704279304234,-154.81422293,0.00031241,4]
[309990893,1704279304254,-1663.43697951,0.00031244,4]
[309990894,1704279304274,-483.92315624,0.00031245,2]
[309990895,1704279304293,-351.14060501,0.00031245,4]
[309990896,1704279304314,-4913.66340081,0.00031245,2]
[309990897,1704279304334,-4062.47635539,0.00031245,4]
[309990905,1704279351846,-790.2383174,0.00030224,2]
[309990906,1704279352128,-16.1273126,0.00030224,2]
[309990908,1704279382771,-422.7293259,0.00030215,2]
[309990909,1704279382916,-8.6271291,0.00030215,2]
[309990910,1704279383032,-414.1021968,0.00030215,2]
[309990911,1704279383088,-17.2542582,0.00030215,2]
[309990912,1704279383121,-405.4750677,0.00030215,2]
[309990913,1704279383591,-25.8813873,0.00030215,2]
[309990914,1704279383623,-431.356455,0.00030215,2]
[309990915,1704279383827,388.2208095,0.00030215,2]
[309990916,1704279383858,43.1356455,0.00030215,2]
[309990917,1704279429567,-5000.0,0.00030215,2]
[309990918,1704279429774,-2001.31486509,0.00030215,2]
[309990919,1704279450204,-2697.91710966,0.00030215,2]
[309990920,1704279450497,-55.05953285,0.00030215,2]
[309990921,1704279451948,564.34535421,0.00030215,4]
[309990922,1704279470339,-1211.89325544,0.00030215,4]
[309990923,1704279470553,-24.73251542,0.00030215,4]
[309990924,1704279478132,-871.16529394,0.00029848,2]
[309990925,1704279478160,-154.81422293,0.00029848,2]
[309990926,1704279478189,-1.28155412,0.00029849,2]
[309990927,1704279478232,-175.77873458,0.00029849,2]
[309990928,1704279479527,154.81422293,0.00029848,2]
[309990929,1704279480839,-980.0,0.00030215,2]
[309990930,1704279480964,-20.0,0.00030215,2]
[309990931,1704279482652,154.81422293,0.00029848,2]
[309990932,1704279485816,-736.93155417,0.000311,4]
[309990933,1704279485930,-15.03941947,0.000311,4]
[309990934,1704279486665,721.8921347,0.000311,4]
[309990935,1704279486695,736.93155417,0.000311,4]
[309990936,1704279486724,736.93155417,0.000311,4]
[309990937,1704279487255,-134.4548949,0.000311,4]
[309990938,1704279488621,1441.69674828,0.000311,4]
[309990939,1704279489271,-1928.47389451,0.000311,4]
[309990940,1704279489301,-1503.54619774,0.000311,4]
[309990941,1704279489371,-70.04122637,0.000311,4]
[309990942,1704279489402,-4929.95877363,0.000311,4]
[309990943,1704279489599,-5000.0,0.000311,4]